[Event "GER-ch Youth U16 2019"]
[Site "Willingen"]
[Date "2019.06.10"]
[Round "3.14"]
[White "Buller, Ian Joshua"]
[Black "Huber, Benedikt"]
[Result "0-1"]
[ECO "B40"]
[WhiteElo "1904"]
[BlackElo "2051"]
[Annotator "NA"]
[PlyCount "41"]
[EventDate "2019.06.07"]
[EventType "swiss"]
[EventRounds "9"]
[EventCountry "GER"]
[SourceTitle "playchess.com"]
[Source "ChessBase"]
[SourceQuality "1"]
[TimeControl "40/5400+30:1800+30"]

1. e4 {[%emt 0:00:00]} c5 {[%emt 0:00:00]} 2. Nf3 {[%emt 0:00:00]} e6 {[%emt 0:00:00]} 3. b3 {[%emt 0:00:00]} b6 {[%emt 0:00:00]} 4. Bd3 {[%emt 0:00:09]} Bb7 {[%emt 0:01:24]} 5. O-O {[%emt 0:00:40]} d6 {[%emt 0:01:47]} 6. Bb2 {[%emt 0:02:59]} Nf6 {[%emt 0:00:48]} 7. e5 {[%emt 0:06:51]} dxe5 {[%emt 0:05:08]} 8. Nxe5 {[%emt 0:00:29]} a6 {[%emt 0:02:20]} 9. f4 {[%emt 0:15:02]} Be7 {[%emt 0:02:38]} 10. Nc3 {[%emt 0:11:09]} Nc6 {[%emt 0:09:54]} 11. Nxc6 {[%emt 0:11:17]} Bxc6 {[%emt 0:02:42]} 12. Qe1 {[%emt 0:01:20]} O-O {[%emt 0:16:00]} 13. Qg3 {[%emt 0:02:29]} b5 {[%emt 0:04:54]} 14. Kh1 {[%emt 0:16:32]} Rc8 {[%emt 0:13:22]} 15. Rae1 {[%emt 0:08:58]} c4 {[%emt 0:09:39]} 16. bxc4 {[%emt 0:00:32]} bxc4 {[%emt 0:00:09]} 17. Be4 {[%emt 0:00:28]} Kh8 {[%emt 0:01:52]} 18. Bxc6 {[%emt 0:01:17]} Rxc6 {[%emt 0:00:02]} 19. Ne4 {[%emt 0:02:14]} Ne8 {[%emt 0:05:46]} 20. Qf3 {[%emt 0:02:44]} Rb6 {[%emt 0:01:48]} 21. Bc3 {[%emt 0:00:09] normal} 0-1

[Event "GER-ch Youth U16 2019"]
[Site "Willingen"]
[Date "2019.06.11"]
[Round "4.6"]
[White "Fromm, Marius"]
[Black "Yi, Danny"]
[Result "1/2-1/2"]
[ECO "A05"]
[WhiteElo "2038"]
[BlackElo "2205"]
[Annotator "NA RC"]
[PlyCount "59"]
[EventDate "2019.06.07"]
[EventType "swiss"]
[EventRounds "9"]
[EventCountry "GER"]
[SourceTitle "playchess.com"]
[Source "ChessBase"]
[SourceQuality "1"]
[TimeControl "40/5400+30:1800+30"]

1. Nf3 {[%emt 0:00:00]} Nf6 {[%emt 0:00:00]} 2. c4 {[%emt 0:00:00]} g6 {[%emt 0:00:05]} 3. Nc3 {[%emt 0:00:00]} d5 {[%emt 0:00:13]} 4. cxd5 {[%emt 0:00:00]} Nxd5 {[%emt 0:00:06]} 5. Qa4+ {[%emt 0:00:01]} Nc6 {[%emt 0:05:25]} 6. Ne5 {[%emt 0:00:54]} Ndb4 {[%emt 0:06:25]} 7. a3 {[%emt 0:19:27]} Nc2+ {[%emt 0:04:05]} 8. Qxc2 {[%emt 0:03:16]} Nxe5 {[%emt 0:00:10]} 9. g3 {[%emt 0:03:16]} Bg7 {[%emt 0:04:51]} 10. Bg2 {[%emt 0:00:29]} O-O {[%emt 0:01:59]} 11. O-O {[%emt 0:00:26]} c6 {[%emt 0:01:40]} 12. d3 {[%emt 0:01:09]} Be6 {[%emt 0:02:28]} 13. Bf4 {[%emt 0:04:15]} Qc8 {[%emt 0:06:50]} 14. Rfc1 {[%emt 0:05:09]} Rd8 {[%emt 0:04:34]} 15. Rab1 {[%emt 0:08:07]} Bh3 {[%emt 0:02:30]} 16. Ne4 {[%emt 0:06:10]} Bxg2 {[%emt 0:03:10]} 17. Kxg2 {[%emt 0:00:05]} Qf5 {[%emt 0:01:12]} 18. b4 {[%emt 0:02:58]} Rac8 {[%emt 0:04:29]} 19. Qc5 {[%emt 0:03:40]} Ng4 {[%emt 0:21:17]} 20. Qxe7 {[%emt 0:10:48]} Re8 {[%emt 0:02:16]} 21. Qg5 {[%emt 0:05:36]} Qxg5 {[%emt 0:06:52]} 22. Bxg5 {[%emt 0:00:06]} f5 {[%emt 0:00:29]} 23. h3 {[%emt 0:06:33]} fxe4 {[%emt 0:00:42]} 24. hxg4 {[%emt 0:00:05]} exd3 {[%emt 0:00:28]} 25. exd3 {[%emt 0:00:04]} Re2 {[%emt 0:01:42]} 26. Be3 {[%emt 0:02:27]} Ra2 {[%emt 0:01:38]} 27. Rb3 {[%emt 0:03:16]} a6 {[%emt 0:01:38]} 28. Rc4 {[%emt 0:01:32]} Rd8 {[%emt 0:01:52]} 29. Re4 {[%emt 0:03:26]} Rb2 {[%emt 0:00:47]} 30. Rxb2 {[%emt 0:00:57] normal} 1/2-1/2

[Event "GER-ch Youth U16 2019"]
[Site "Willingen"]
[Date "2019.06.11"]
[Round "4.9"]
[White "Knuedel, Torben"]
[Black "Liebold, Aaron"]
[Result "1-0"]
[ECO "B94"]
[WhiteElo "2044"]
[BlackElo "1870"]
[Annotator "NA"]
[PlyCount "39"]
[EventDate "2019.06.07"]
[EventType "swiss"]
[EventRounds "9"]
[EventCountry "GER"]
[SourceTitle "playchess.com"]
[Source "ChessBase"]
[SourceQuality "1"]
[TimeControl "40/5400+30:1800+30"]

1. e4 {[%emt 0:00:00]} c5 {[%emt 0:00:00]} 2. Nf3 {[%emt 0:00:00]} d6 {[%emt 0:00:00]} 3. d4 {[%emt 0:00:00]} cxd4 {[%emt 0:00:01]} 4. Nxd4 {[%emt 0:00:00]} Nf6 {[%emt 0:00:14]} 5. Nc3 {[%emt 0:00:00]} a6 {[%emt 0:00:14]} 6. Bg5 {[%emt 0:00:00]} Nbd7 {[%emt 0:00:49]} 7. Qe2 {[%emt 0:00:15]} h6 {[%emt 0:01:22]} 8. Bh4 {[%emt 0:00:04]} g6 {[%emt 0:00:33]} 9. f4 {[%emt 0:00:16]} e5 {[%emt 0:00:48]} 10. fxe5 {[%emt 0:01:08]} dxe5 {[%emt 0:00:55]} 11. O-O-O {[%emt 0:00:10]} Qc7 {[%emt 0:00:43]} 12. Nb3 {[%emt 0:01:25]} Be7 {[%emt 0:00:57]} 13. Qf3 {[%emt 0:10:23]} b5 {[%emt 0:06:08]} 14. Rxd7 {[%emt 0:08:33]} Qxd7 {[%emt 0:10:00]} 15. Bxf6 {[%emt 0:02:39]} Bxf6 {[%emt 0:01:37]} 16. Qxf6 {[%emt 0:00:12]} O-O {[%emt 0:00:36]} 17. Nd5 {[%emt 0:04:34]} Qe6 {[%emt 0:05:06]} 18. Qh4 {[%emt 0:06:16]} g5 {[%emt 0:01:46]} 19. Qg3 {[%emt 0:00:52]} Ra7 {[%emt 0:02:55]} 20. Qe3 {[%emt 0:02:40] normal} 1-0

[Event "GER-ch Youth U16 2019"]
[Site "Willingen"]
[Date "2019.06.11"]
[Round "4.12"]
[White "Huber, Benedikt"]
[Black "Boder, Jan"]
[Result "1/2-1/2"]
[ECO "A57"]
[WhiteElo "2051"]
[BlackElo "2123"]
[Annotator "NA"]
[PlyCount "96"]
[EventDate "2019.06.07"]
[EventType "swiss"]
[EventRounds "9"]
[EventCountry "GER"]
[SourceTitle "playchess.com"]
[Source "ChessBase"]
[SourceQuality "1"]
[TimeControl "40/5400+30:1800+30"]

1. d4 {[%emt 0:00:00]} Nf6 {[%emt 0:00:00]} 2. c4 {[%emt 0:00:06]} c5 {[%emt 0:00:00]} 3. d5 {[%emt 0:00:34]} b5 {[%emt 0:00:00]} 4. Nf3 {[%emt 0:00:32]} g6 {[%emt 0:00:33]} 5. cxb5 {[%emt 0:00:42]} a6 {[%emt 0:00:09]} 6. e4 {[%emt 0:00:15]} Bg7 {[%emt 0:08:11]} 7. Nc3 {[%emt 0:06:30]} O-O {[%emt 0:01:11]} 8. a4 {[%emt 0:07:58]} e6 {[%emt 0:07:50]} 9. Bc4 {[%emt 0:14:49]} exd5 {[%emt 0:01:42]} 10. Bxd5 {[%emt 0:05:40]} Ra7 {[%emt 0:00:20]} 11. Bf4 {[%emt 0:02:36]} Bb7 {[%emt 0:05:31]} 12. O-O {[%emt 0:09:56]} Bxd5 {[%emt 0:02:03]} 13. exd5 {[%emt 0:01:22]} d6 {[%emt 0:01:02]} 14. h3 {[%emt 0:07:19]} Re8 {[%emt 0:02:44]} 15. a5 {[%emt 0:04:47]} axb5 {[%emt 0:04:23]} 16. Nxb5 {[%emt 0:00:43]} Ra6 {[%emt 0:00:33]} 17. Qd3 {[%emt 0:07:41]} Nh5 {[%emt 0:05:22]} 18. Bg5 {[%emt 0:01:37]} Qd7 {[%emt 0:00:33]} 19. Ra2 {[%emt 0:06:05]} h6 {[%emt 0:00:36]} 20. Bd2 {[%emt 0:00:28]} Nf6 {[%emt 0:00:04]} 21. Bc3 {[%emt 0:02:23]} Nxd5 {[%emt 0:01:39]} 22. Qxd5 {[%emt 0:03:51]} Qxb5 {[%emt 0:00:11]} 23. Nd2 {[%emt 0:00:17]} Nc6 {[%emt 0:07:29]} 24. Nc4 {[%emt 0:04:58]} Nb4 {[%emt 0:02:23]} 25. Bxb4 {[%emt 0:01:19]} Qxb4 {[%emt 0:00:04]} 26. Nxd6 {[%emt 0:00:13]} Re6 {[%emt 0:04:38]} 27. Nc4 {[%emt 0:02:08]} Bd4 {[%emt 0:00:42]} 28. Ne3 {[%emt 0:00:57]} Qd2 {[%emt 0:04:54]} 29. b4 {[%emt 0:00:52]} Qxb4 {[%emt 0:01:32]} 30. Nc2 {[%emt 0:00:07]} Qc3 {[%emt 0:00:36]} 31. Nxd4 {[%emt 0:00:37]} cxd4 {[%emt 0:01:32]} 32. Rd1 {[%emt 0:00:40]} Red6 {[%emt 0:04:20]} 33. Qb5 {[%emt 0:00:11]} d3 {[%emt 0:01:21]} 34. Rad2 {[%emt 0:00:10]} Qxa5 {[%emt 0:02:12]} 35. Qxa5 {[%emt 0:00:20]} Rxa5 {[%emt 0:00:06]} 36. Rxd3 {[%emt 0:00:04]} Rf6 {[%emt 0:00:38]} 37. g3 {[%emt 0:00:59]} Kg7 {[%emt 0:00:05]} 38. Kg2 {[%emt 0:00:07]} g5 {[%emt 0:00:03]} 39. Rf3 {[%emt 0:00:26]} Rxf3 {[%emt 0:00:10]} 40. Kxf3 {[%emt 0:00:06]} Ra3+ {[%emt 0:00:02]} 41. Kg2 {[%emt 0:30:16]} Kg6 {[%emt 0:30:07]} 42. Rd6+ {[%emt 0:00:07]} f6 {[%emt 0:00:09]} 43. Rb6 {[%emt 0:00:14]} h5 {[%emt 0:00:06]} 44. Rb8 {[%emt 0:00:45]} Ra5 {[%emt 0:00:18]} 45. Rg8+ {[%emt 0:00:47]} Kf5 {[%emt 0:00:07]} 46. Rh8 {[%emt 0:00:09]} Kg6 {[%emt 0:00:14]} 47. Rg8+ {[%emt 0:00:05]} Kf7 {[%emt 0:00:02]} 48. Rh8 {[%emt 0:00:09]} Kg6 {[%emt 0:00:10] normal} 1/2-1/2

[Event "GER-ch Youth U16 2019"]
[Site "Willingen"]
[Date "2019.06.11"]
[Round "4.13"]
[White "Biermann, Florian"]
[Black "Koehler, Lukas"]
[Result "1/2-1/2"]
[ECO "A35"]
[WhiteElo "2018"]
[BlackElo "2068"]
[Annotator "NA"]
[PlyCount "82"]
[EventDate "2019.06.07"]
[EventType "swiss"]
[EventRounds "9"]
[EventCountry "GER"]
[SourceTitle "playchess.com"]
[Source "ChessBase"]
[SourceQuality "1"]
[TimeControl "40/5400+30:1800+30"]

1. c4 {[%emt 0:00:00]} c5 {[%emt 0:00:00]} 2. Nf3 {[%emt 0:00:00]} Nc6 {[%emt 0:00:00]} 3. Nc3 {[%emt 0:00:08]} Nf6 {[%emt 0:03:43]} 4. g3 {[%emt 0:01:04]} e5 {[%emt 0:08:15]} 5. Bg2 {[%emt 0:00:42]} d6 {[%emt 0:00:51]} 6. d3 {[%emt 0:02:59]} h6 {[%emt 0:01:22]} 7. O-O {[%emt 0:01:50]} Be6 {[%emt 0:00:49]} 8. Ne1 {[%emt 0:02:26]} Qd7 {[%emt 0:09:07]} 9. Nc2 {[%emt 0:21:25]} d5 {[%emt 0:10:50]} 10. cxd5 {[%emt 0:00:24]} Nxd5 {[%emt 0:00:07]} 11. Ne3 {[%emt 0:03:02]} Nf6 {[%emt 0:07:56]} 12. Nc4 {[%emt 0:01:00]} Bh3 {[%emt 0:03:25]} 13. b3 {[%emt 0:07:42]} Be7 {[%emt 0:09:24]} 14. Bb2 {[%emt 0:03:05]} h5 {[%emt 0:05:02]} 15. Bxh3 {[%emt 0:21:27]} Qxh3 {[%emt 0:00:18]} 16. f3 {[%emt 0:00:57]} O-O-O {[%emt 0:10:04]} 17. Rf2 {[%emt 0:01:31]} g5 {[%emt 0:03:55]} 18. Qf1 {[%emt 0:04:41]} Qe6 {[%emt 0:01:11]} 19. Ne4 {[%emt 0:04:17]} Nd5 {[%emt 0:02:04]} 20. Nc3 {[%emt 0:05:24]} Rh7 {[%emt 0:06:21]} 21. Nxd5 {[%emt 0:02:20]} Qxd5 {[%emt 0:00:19]} 22. Rd1 {[%emt 0:01:38]} Qe6 {[%emt 0:03:33]} 23. e4 {[%emt 0:00:52]} Bd6 {[%emt 0:02:03]} 24. Ne3 {[%emt 0:00:19]} Ne7 {[%emt 0:00:35]} 25. Qe2 {[%emt 0:00:54]} Rg8 {[%emt 0:01:15]} 26. Qc2 {[%emt 0:00:59]} Kb8 {[%emt 0:01:09]} 27. Qc4 {[%emt 0:00:34]} Qh6 {[%emt 0:01:31]} 28. g4 {[%emt 0:02:29]} Qf6 {[%emt 0:02:24]} 29. Nf5 {[%emt 0:02:30]} Nxf5 {[%emt 0:01:11]} 30. exf5 {[%emt 0:00:05]} Qd8 {[%emt 0:02:12]} 31. Qe4 {[%emt 0:01:44]} f6 {[%emt 0:00:43]} 32. Re2 {[%emt 0:02:50]} Rgh8 {[%emt 0:00:28]} 33. Rdd2 {[%emt 0:01:39]} Qb6 {[%emt 0:01:08]} 34. Kh1 {[%emt 0:00:58]} Qa5 {[%emt 0:01:58]} 35. Rc2 {[%emt 0:01:11]} hxg4 {[%emt 0:00:46]} 36. fxg4 {[%emt 0:00:21]} Qa6 {[%emt 0:01:26]} 37. Rc4 {[%emt 0:00:39]} b5 {[%emt 0:00:29]} 38. Rcc2 {[%emt 0:00:14]} Rh3 {[%emt 0:00:25]} 39. b4 {[%emt 0:01:25]} Qb6 {[%emt 0:00:38]} 40. bxc5 {[%emt 0:01:29]} Bxc5 {[%emt 0:00:20]} 41. Qd5 {[%emt 0:15:00]} Be7 {normal} 1/2-1/2

[Event "GER-ch Youth U16 2019"]
[Site "Willingen"]
[Date "2019.06.12"]
[Round "5.1"]
[White "Woelk, Tom-Frederic"]
[Black "Koellner, Ruben Gideon"]
[Result "0-1"]
[ECO "C60"]
[WhiteElo "2239"]
[BlackElo "2299"]
[Annotator "NA"]
[PlyCount "127"]
[EventDate "2019.06.07"]
[EventType "swiss"]
[EventRounds "9"]
[EventCountry "GER"]
[SourceTitle "playchess.com"]
[Source "ChessBase"]
[SourceQuality "1"]
[TimeControl "40/5400+30:1800+30"]

1. e4 {[%emt 0:00:00]} e5 {[%emt 0:00:00]} 2. Nf3 {[%emt 0:00:00]} Nc6 {[%emt 0:00:00]} 3. Bb5 {[%emt 0:00:00]} Nge7 {[%emt 0:00:00]} 4. c3 {[%emt 0:02:36]} g6 {[%emt 0:02:49]} 5. O-O {[%emt 0:00:54]} a6 {[%emt 0:00:02]} 6. Ba4 {[%emt 0:00:25]} Bg7 {[%emt 0:00:14]} 7. d4 {[%emt 0:00:11]} exd4 {[%emt 0:00:12]} 8. cxd4 {[%emt 0:00:05]} b5 {[%emt 0:00:16]} 9. Bc2 {[%emt 0:01:47]} d6 {[%emt 0:00:40]} 10. h3 {[%emt 0:00:10]} O-O {[%emt 0:00:45]} 11. Nc3 {[%emt 0:01:26]} h6 {[%emt 0:01:40]} 12. d5 {[%emt 0:07:54]} Na5 {[%emt 0:00:25]} 13. Rb1 {[%emt 0:11:48]} c6 {[%emt 0:09:52]} 14. dxc6 {[%emt 0:05:18]} Nexc6 {[%emt 0:00:04]} 15. Nd5 {[%emt 0:01:25]} Be6 {[%emt 0:02:28]} 16. b3 {[%emt 0:15:41]} Rc8 {[%emt 0:11:16]} 17. Bb2 {[%emt 0:12:23]} Bxb2 {[%emt 0:05:23]} 18. Rxb2 {[%emt 0:00:05]} Bxd5 {[%emt 0:00:14]} 19. Qxd5 {[%emt 0:04:17]} Qf6 {[%emt 0:02:58]} 20. Rfb1 {[%emt 0:00:12]} Kg7 {[%emt 0:04:02]} 21. Qd2 {[%emt 0:06:53]} Nb7 {[%emt 0:00:29]} 22. b4 {[%emt 0:03:39]} Ne5 {[%emt 0:01:36]} 23. Nxe5 {[%emt 0:00:25]} dxe5 {[%emt 0:00:07]} 24. Bb3 {[%emt 0:00:27]} Nd6 {[%emt 0:00:25]} 25. Qe2 {[%emt 0:05:03]} Rc3 {[%emt 0:03:39]} 26. Rd2 {[%emt 0:01:40]} Rfc8 {[%emt 0:02:33]} 27. Rbd1 {[%emt 0:01:27]} Rc1 {[%emt 0:01:22]} 28. Bd5 {[%emt 0:02:38]} Qe7 {[%emt 0:08:48]} 29. Qe1 {[%emt 0:01:46]} Rxd1 {[%emt 0:02:31]} 30. Rxd1 {[%emt 0:00:28]} Qc7 {[%emt 0:06:14]} 31. Bb3 {[%emt 0:01:51]} Ne8 {[%emt 0:04:40]} 32. Rd5 {[%emt 0:01:30]} Qe7 {[%emt 0:00:52]} 33. Qa1 {[%emt 0:01:41]} Nf6 {[%emt 0:04:00]} 34. Qxe5 {[%emt 0:01:04]} Qxb4 {[%emt 0:00:26]} 35. Rd7 {[%emt 0:01:51]} Rf8 {[%emt 0:00:16]} 36. Kh2 {[%emt 0:02:41]} Qxe4 {[%emt 0:00:45]} 37. Qb2 {[%emt 0:02:52]} Qf5 {[%emt 0:03:25]} 38. Ra7 {[%emt 0:00:29]} Qf4+ {[%emt 0:01:31]} 39. g3 {[%emt 0:00:06]} Qd6 {[%emt 0:00:09]} 40. a3 {[%emt 0:00:57]} Kg8 {[%emt 0:02:03]} 41. Qa2 {[%emt 0:30:28]} Nd7 {[%emt 0:30:47]} 42. Bd5 {[%emt 0:00:00]} Ne5 {[%emt 0:00:00]} 43. a4 {[%emt 0:00:00]} Nc4 {[%emt 0:00:00]} 44. Bg2 {[%emt 0:00:00]} Rd8 {[%emt 0:00:00]} 45. axb5 {[%emt 0:00:00]} axb5 {[%emt 0:00:00]} 46. Rb7 {[%emt 0:00:00]} Qc5 {[%emt 0:00:00]} 47. Qe2 {[%emt 0:00:00]} Kg7 {[%emt 0:00:00]} 48. Qf3 {[%emt 0:00:00]} Nd6 {[%emt 0:00:00]} 49. Re7 {[%emt 0:00:00]} Nf5 {[%emt 0:00:00]} 50. Rb7 {[%emt 0:00:00]} Rd2 {[%emt 0:00:00]} 51. Kg1 {[%emt 0:00:00]} b4 {[%emt 0:00:00]} 52. Bf1 {[%emt 0:00:00]} Nd6 {[%emt 0:02:29]} 53. Rb8 {[%emt 0:00:00]} Ne4 {[%emt 0:02:17]} 54. Be2 {[%emt 0:00:00]} Ng5 {[%emt 0:04:28]} 55. Qg4 {[%emt 0:00:00]} Nxh3+ {[%emt 0:01:20]} 56. Qxh3 {[%emt 0:00:00]} Rxe2 {[%emt 0:00:07]} 57. Qf1 {[%emt 0:00:30]} Qe5 {[%emt 0:00:32]} 58. Kg2 {[%emt 0:01:18]} Rxf2+ {[%emt 0:02:39]} 59. Qxf2 {[%emt 0:00:08]} Qxb8 {[%emt 0:00:05]} 60. Qb2+ {[%emt 0:00:27]} Kg8 {[%emt 0:00:08]} 61. Qb3 {[%emt 0:00:10]} Qb5 {[%emt 0:00:21]} 62. Kh2 {[%emt 0:00:37]} Qc5 {[%emt 0:00:15]} 63. Qa4 {[%emt 0:00:14]} Qc3 {[%emt 0:00:23]} 64. Qa5 {[%emt 0:00:15] normal} 0-1

[Event "GER-ch Youth U16 2019"]
[Site "Willingen"]
[Date "2019.06.12"]
[Round "5.2"]
[White "Stork, Oliver"]
[Black "Suvorov, Alexander"]
[Result "1/2-1/2"]
[ECO "A10"]
[WhiteElo "2224"]
[BlackElo "2325"]
[Annotator "NA"]
[PlyCount "68"]
[EventDate "2019.06.07"]
[EventType "swiss"]
[EventRounds "9"]
[EventCountry "GER"]
[SourceTitle "playchess.com"]
[Source "ChessBase"]
[SourceQuality "1"]
[TimeControl "40/5400+30:1800+30"]

1. c4 {[%emt 0:00:00]} g6 {[%emt 0:00:00]} 2. Nc3 {[%emt 0:00:10]} Bg7 {[%emt 0:00:20]} 3. g3 {[%emt 0:00:59]} f5 {[%emt 0:00:54]} 4. d4 {[%emt 0:02:59]} Nf6 {[%emt 0:00:40]} 5. Bg2 {[%emt 0:00:17]} d6 {[%emt 0:00:57]} 6. Nf3 {[%emt 0:01:38]} O-O {[%emt 0:00:22]} 7. O-O {[%emt 0:00:06]} Qe8 {[%emt 0:02:58]} 8. e4 {[%emt 0:15:47]} fxe4 {[%emt 0:16:14]} 9. Ng5 {[%emt 0:00:12]} Bf5 {[%emt 0:01:26]} 10. Ngxe4 {[%emt 0:04:41]} Nxe4 {[%emt 0:04:58]} 11. Nxe4 {[%emt 0:00:28]} Nc6 {[%emt 0:06:59]} 12. Be3 {[%emt 0:01:34]} Kh8 {[%emt 0:21:28]} 13. Rc1 {[%emt 0:16:43]} e5 {[%emt 0:05:45]} 14. d5 {[%emt 0:01:27]} Nd4 {[%emt 0:05:01]} 15. c5 {[%emt 0:06:04]} Qd7 {[%emt 0:04:53]} 16. Ng5 {[%emt 0:17:59]} Rac8 {[%emt 0:08:09]} 17. Bxd4 {[%emt 0:03:51]} exd4 {[%emt 0:00:05]} 18. Qb3 {[%emt 0:00:15]} Bh6 {[%emt 0:03:51]} 19. Ne6 {[%emt 0:04:11]} Bxc1 {[%emt 0:01:07]} 20. Nxf8 {[%emt 0:01:27]} Rxf8 {[%emt 0:00:01]} 21. Rxc1 {[%emt 0:00:06]} dxc5 {[%emt 0:01:23]} 22. Rxc5 {[%emt 0:01:53]} Re8 {[%emt 0:02:11]} 23. Qd1 {[%emt 0:06:15]} d3 {[%emt 0:03:47]} 24. g4 {[%emt 0:06:57]} Bxg4 {[%emt 0:04:45]} 25. Qxd3 {[%emt 0:00:05]} Re1+ {[%emt 0:00:42]} 26. Bf1 {[%emt 0:00:04]} Qe7 {[%emt 0:00:35]} 27. Qc3+ {[%emt 0:02:54]} Qe5 {[%emt 0:00:56]} 28. Qxe5+ {[%emt 0:01:35]} Rxe5 {[%emt 0:00:01]} 29. Rxc7 {[%emt 0:02:11]} Rxd5 {[%emt 0:01:25]} 30. h3 {[%emt 0:01:21]} Bf3 {[%emt 0:00:18]} 31. Kh2 {[%emt 0:00:19]} Rd2 {[%emt 0:01:24]} 32. Kg3 {[%emt 0:00:11]} Bc6 {[%emt 0:00:23]} 33. b4 {[%emt 0:00:41]} Rxa2 {[%emt 0:00:26]} 34. b5 Bd5 {[%emt 0:00:58] normal} 1/2-1/2

[Event "GER-ch Youth U16 2019"]
[Site "Willingen"]
[Date "2019.06.12"]
[Round "5.4"]
[White "Richter, Nils"]
[Black "Wachinger, Nikolas"]
[Result "0-1"]
[ECO "B90"]
[WhiteElo "2115"]
[BlackElo "2311"]
[Annotator "NA"]
[PlyCount "64"]
[EventDate "2019.06.07"]
[EventType "swiss"]
[EventRounds "9"]
[EventCountry "GER"]
[SourceTitle "playchess.com"]
[Source "ChessBase"]
[SourceQuality "1"]
[TimeControl "40/5400+30:1800+30"]

1. e4 {[%emt 0:00:00]} c5 {[%emt 0:00:00]} 2. Nf3 {[%emt 0:00:00]} d6 {[%emt 0:00:00]} 3. d4 {[%emt 0:00:00]} Nf6 {[%emt 0:00:00]} 4. Nc3 {[%emt 0:00:01]} cxd4 {[%emt 0:00:00]} 5. Nxd4 {[%emt 0:00:08]} a6 {[%emt 0:00:06]} 6. Rg1 {[%emt 0:00:27]} b5 {[%emt 0:00:17]} 7. g4 {[%emt 0:00:22]} Bb7 {[%emt 0:00:12]} 8. Bg2 {[%emt 0:00:12]} e6 {[%emt 0:00:20]} 9. g5 {[%emt 0:01:48]} Nfd7 {[%emt 0:00:08]} 10. f4 {[%emt 0:00:32]} b4 {[%emt 0:09:50]} 11. Nce2 {[%emt 0:00:09]} Be7 {[%emt 0:04:57]} 12. Ng3 {[%emt 0:03:31]} Nc6 {[%emt 0:14:26]} 13. Nh5 {[%emt 0:09:47]} O-O {[%emt 0:05:56]} 14. Be3 {[%emt 0:11:49]} Na5 {[%emt 0:02:00]} 15. Qe2 {[%emt 0:01:42]} g6 {[%emt 0:07:41]} 16. Ng3 {[%emt 0:06:35]} Qc7 {[%emt 0:03:22]} 17. f5 {[%emt 0:03:04]} e5 {[%emt 0:05:21]} 18. fxg6 {[%emt 0:04:07]} exd4 {[%emt 0:14:54]} 19. Nf5 {[%emt 0:02:16]} Ne5 {[%emt 0:09:18]} 20. g7 {[%emt 0:03:28]} dxe3 {[%emt 0:03:46]} 21. gxf8=Q+ {[%emt 0:00:35]} Bxf8 {[%emt 0:00:19]} 22. O-O-O {[%emt 0:02:37]} Nac4 {[%emt 0:01:30]} 23. Rd4 {[%emt 0:07:18]} Rc8 {[%emt 0:02:24]} 24. Bh3 {[%emt 0:00:26]} Qa5 {[%emt 0:03:59]} 25. Nh6+ {[%emt 0:01:27]} Kh8 {[%emt 0:00:50]} 26. Kb1 {[%emt 0:02:43]} Rc7 {[%emt 0:01:12]} 27. Nxf7+ {[%emt 0:03:34]} Rxf7 {[%emt 0:01:02]} 28. Rxc4 {[%emt 0:00:18]} Nxc4 {[%emt 0:01:41]} 29. Qxc4 {[%emt 0:00:02]} Rc7 {[%emt 0:02:25]} 30. Qd4+ {[%emt 0:01:55]} Qe5 {[%emt 0:00:07]} 31. Qxe3 {[%emt 0:00:27]} Bg7 {[%emt 0:00:25]} 32. Qc1 {[%emt 0:00:43]} Bxe4 {[%emt 0:00:28] normal} 0-1

[Event "GER-ch Youth U16 2019"]
[Site "Willingen"]
[Date "2019.06.12"]
[Round "5.5"]
[White "Yi, Danny"]
[Black "Knuedel, Torben"]
[Result "1/2-1/2"]
[ECO "C54"]
[WhiteElo "2205"]
[BlackElo "2044"]
[Annotator "NA"]
[PlyCount "41"]
[EventDate "2019.06.07"]
[EventType "swiss"]
[EventRounds "9"]
[EventCountry "GER"]
[SourceTitle "playchess.com"]
[Source "ChessBase"]
[SourceQuality "1"]
[TimeControl "40/5400+30:1800+30"]

1. e4 {[%emt 0:00:00]} e5 {[%emt 0:00:00]} 2. Nf3 {[%emt 0:00:00]} Nc6 {[%emt 0:00:00]} 3. Bc4 {[%emt 0:00:00]} Bc5 {[%emt 0:00:00]} 4. c3 {[%emt 0:00:14]} Nf6 {[%emt 0:00:00]} 5. d4 {[%emt 0:00:19]} exd4 {[%emt 0:00:06]} 6. e5 {[%emt 0:00:06]} d5 {[%emt 0:01:20]} 7. Bb5 {[%emt 0:00:30]} Ne4 {[%emt 0:00:12]} 8. cxd4 {[%emt 0:00:08]} Bb6 {[%emt 0:00:06]} 9. Nc3 {[%emt 0:00:14]} O-O {[%emt 0:03:45]} 10. Be3 {[%emt 0:02:52]} Bg4 {[%emt 0:03:16]} 11. h3 {[%emt 0:01:36]} Bh5 {[%emt 0:00:04]} 12. Qc2 {[%emt 0:01:20]} Ba5 {[%emt 0:01:35]} 13. O-O {[%emt 0:02:55]} Bxf3 {[%emt 0:03:04]} 14. gxf3 {[%emt 0:00:21]} Nxd4 {[%emt 0:00:42]} 15. Bxd4 {[%emt 0:00:39]} Bxc3 {[%emt 0:00:37]} 16. bxc3 {[%emt 0:02:08]} Qg5+ {[%emt 0:00:29]} 17. Kh1 {[%emt 0:00:34]} Qf5 {[%emt 0:00:07]} 18. fxe4 {[%emt 0:00:51]} Qxh3+ {[%emt 0:00:07]} 19. Kg1 {[%emt 0:00:03]} Qg4+ {[%emt 0:00:06]} 20. Kh1 {[%emt 0:00:05]} Qh3+ {[%emt 0:00:03]} 21. Kg1 {[%emt 0:00:05] normal} 1/2-1/2